fUSD/lending_fUSD_20240223
["ID","MTS","AMOUNT","RATE_DAILY","PERIOD"]
[314930199,1708681840242,-2285.15182818,0.0002803,2]
[314930200,1708681840251,-489.73327616,0.0002803,2]
[314930201,1708681840261,-770.12,0.0002803,2]
[314930202,1708681840271,-348.09367243,0.00028032,2]
[314930203,1708681840280,-1541.4357,0.00028032,2]
[314930204,1708681840290,-13522.35437379,0.00028032,2]
[314930205,1708681840303,-4295.9824655,0.00028032,2]
[314930206,1708681840334,-5774.57740392,0.00028032,2]
[314930207,1708681840346,-12152.1623473,0.00028032,2]
[314930230,1708681840892,-668.16681472,0.00028032,2]
[314930231,1708681841591,-5902.35906833,0.00028032,2]
[314930232,1708681841606,-305.44988029,0.00028032,2]
[314930233,1708681841618,-2681.98083323,0.00028032,2]
[314930234,1708681841630,-309.04679903,0.00028032,2]
[314930235,1708681841642,-360.21,0.00028032,2]
[314930236,1708681841668,-339.33614154,0.00028032,2]
[314930237,1708681841679,-4905.77646188,0.00028032,2]
[314930238,1708681841737,-1077.18868079,0.00028032,2]
[314930239,1708681841749,-630.36829734,0.00028032,2]
[314930240,1708681841760,-355.12996767,0.00028032,2]
[314930241,1708681841772,-1492.22622201,0.00028032,2]
[314930242,1708681841806,-1423.67607198,0.00028032,2]
[314930243,1708681841850,-2014.53425837,0.00028032,2]
[314930244,1708681841861,-469.50000035,0.00028032,2]
[314930245,1708681841877,-286.83677164,0.00028032,2]
[314930246,1708681841889,-1737.61932229,0.00028032,2]
[314930247,1708681841901,-711.39383473,0.00028032,2]
[314930248,1708681841913,-773.7975711,0.00028032,2]
[314930249,1708681843362,-537.2279258,0.00028032,2]
[314930250,1708681843481,-9801.21425,0.00028032,2]
[314930254,1708681843704,-27471.8842364,0.00028032,2]
[314930255,1708681843713,-166259.6908068,0.00028032,2]
[314930259,1708681846348,-359.27642216,0.00028031,2]
[314930260,1708681846360,-615.56277098,0.00028031,2]
[314930261,1708681846371,-31.18699305,0.00028032,2]
[314930262,1708681846385,-2551.75,0.00028032,2]
[314930263,1708681846398,-534.00001,0.00028032,2]
[314930264,1708681846409,-2925.5,0.00028032,2]
[314930265,1708681846421,-925.80227176,0.00028032,2]
[314930266,1708681846436,-9737.00005,0.00028032,2]
[314930267,1708681846448,-2554.7493,0.00028032,2]
[314930268,1708681846487,-59480.32056839,0.00028032,2]
[314930269,1708681846498,-939.50939807,0.00028033,2]
[314930270,1708681846508,-150.69434747,0.00028065,2]
[314930271,1708681846518,-939.50939807,0.00028066,2]
[314930272,1708681846528,-165.21114694,0.000281,2]
[314930273,1708681846537,-301.19103782,0.000281,2]
[314930274,1708681846547,-2561.02726059,0.000281,2]
[314930275,1708681846558,-24115.65878358,0.000281,2]
[314930276,1708681846568,-1631.94621085,0.000281,2]
[314930277,1708681846579,-939.50939807,0.000281,2]
[314930278,1708681846588,-543.07344559,0.000281,2]
[314930279,1708681846598,-173.1772457,0.000281,2]
[314930280,1708681846608,-220.05427419,0.000281,5]
[314930281,1708681846618,-477.05917284,0.000281,2]
[314930282,1708681846628,-2383.31263707,0.000281,2]
[314930283,1708681846640,-764.57654047,0.00028131,2]
[314930284,1708681846650,-13189.18,0.00028132,2]
[314930285,1708681846659,-13189.18,0.00028132,2]
[314930286,1708681846669,-13189.18,0.00028132,2]
[314930287,1708681846678,-13189.18,0.00028132,2]
[314930289,1708681846687,-13189.18,0.00028132,2]
[314930290,1708681846697,-13189.18,0.00028132,2]
[314930291,1708681846707,-13189.18,0.00028132,2]
[314930292,1708681846716,-13189.18,0.00028132,2]
[314930293,1708681846726,-13189.18,0.00028132,2]
[314930294,1708681846736,-13189.18,0.00028132,2]
[314930295,1708681846745,-13189.18,0.00028132,2]
[314930296,1708681846755,-13189.18,0.00028132,2]
[314930297,1708681846764,-13189.18,0.00028132,2]
[314930298,1708681846773,-13189.18,0.00028132,2]
[314930299,1708681846782,-13189.18,0.00028132,2]
[314930300,1708681846792,-13189.19168282,0.00028132,2]
[314930301,1708681846801,-182.488863,0.00028162,7]
[314930302,1708681846810,-151.0,0.00028162,7]
[314930303,1708681846819,-151.0,0.00028162,7]
[314930304,1708681846827,-151.0,0.00028162,7]
[314930305,1708681846837,-158.084232,0.00028162,7]
[314930306,1708681846846,-153.422171,0.00028162,7]
[314930307,1708681846855,-151.0,0.00028162,7]
[314930308,1708681846864,-160.0,0.00028162,7]
[314930309,1708681846945,-160.0,0.00028162,7]
[314930310,1708681846955,-151.499031,0.00028162,7]
[314930311,1708681846964,-152.365701,0.00028162,3]
[314930312,1708681846973,-151.0,0.00028162,7]
[314930313,1708681846982,-152.192994,0.00028162,7]
[314930314,1708681846992,-151.0,0.00028162,7]
[314930315,1708681847002,-151.671644,0.00028162,7]
[314930316,1708681847011,-151.0,0.00028162,2]
[314930317,1708681847021,-151.0,0.00028162,7]
[314930318,1708681847030,-151.0,0.00028162,2]
[314930319,1708681847039,-151.0,0.00028162,7]
[314930320,1708681847049,-636.796986,0.00028162,7]
[314930321,1708681847059,-636.796986,0.00028162,7]
[314930322,1708681847068,-151.0,0.00028162,7]
[314930323,1708681847077,-151.0,0.00028162,7]
[314930324,1708681847087,-151.0,0.00028162,7]
[314930325,1708681847096,-151.0,0.00028162,7]
[314930326,1708681847105,-151.0,0.00028162,7]
[314930327,1708681847114,-151.0,0.00028162,7]
[314930328,1708681847124,-151.0,0.00028162,7]
[314930329,1708681847134,-213.654606,0.00028162,7]
[314930330,1708681847144,-213.654606,0.00028162,7]
[314930331,1708681847153,-151.0,0.00028162,7]
[314930332,1708681847164,-278.392754,0.00028162,7]
[314930333,1708681847175,-151.0,0.00028162,7]
[314930334,1708681847185,-278.392754,0.00028162,7]
[314930335,1708681847194,-151.0,0.00028162,7]
[314930336,1708681847203,-428.97,0.00028175,2]
[314930337,1708681847212,-770.12,0.00028189,2]
[314930338,1708681847222,-32472.0,0.00028192,4]
[314930339,1708681847230,-153.821496,0.00028199,7]
[314930340,1708681847241,-151.0,0.00028199,7]
[314930341,1708681847250,-151.0,0.00028199,7]
[314930342,1708681847260,-155.872338,0.00028199,7]
[314930343,1708681847271,-151.0,0.00028199,7]
[314930344,1708681847280,-155.555295,0.00028199,7]
[314930345,1708681847290,-163.105822,0.00028199,7]
[314930346,1708681847299,-151.0,0.00028199,7]
[314930347,1708681847308,-167.494801,0.00028199,7]
[314930348,1708681847319,-151.0,0.00028199,7]
[314930349,1708681847328,-151.0,0.00028199,7]
[314930350,1708681847338,-151.0,0.00028199,7]
[314930351,1708681847347,-151.0,0.00028199,7]
[314930352,1708681847357,-151.0,0.00028199,7]
[314930353,1708681847367,-151.0,0.00028199,7]
[314930354,1708681847377,-157.653216,0.00028199,7]
[314930355,1708681847386,-151.0,0.00028199,7]
[314930356,1708681847396,-151.0,0.00028199,7]
[314930357,1708681847405,-151.0,0.00028199,7]
[314930358,1708681847414,-151.0,0.00028199,7]
[314930359,1708681847424,-296.04880266,0.00028199,2]
[314930360,1708681847434,-561266.01987084,0.000282,4]
[314930361,1708681847443,-1105158.0223263,0.000282,4]
[314930362,1708681847453,-210.697901,0.000282,7]
[314930363,1708681847462,-210.697901,0.000282,7]
[314930364,1708681847471,-254.713257,0.000282,7]
[314930365,1708681847481,-210.697901,0.000282,7]
[314930366,1708681847492,-210.697901,0.000282,7]
[314930367,1708681847502,-151.0,0.000282,7]
[314930368,1708681847512,-153.857137,0.000282,7]
[314930369,1708681847522,-151.0,0.000282,7]
[314930370,1708681847533,-248.404949,0.000282,7]
[314930371,1708681847543,-166.616949,0.000282,7]
[314930372,1708681847553,-151.010962,0.000282,7]
[314930373,1708681847567,-151.0,0.000282,7]
[314930374,1708681847577,-151.0,0.000282,7]
[314930375,1708681847586,-153.156651,0.000282,7]
[314930376,1708681847597,-151.0,0.000282,7]
[314930377,1708681847607,-158.331203,0.000282,7]
[314930378,1708681847616,-160.0,0.000282,7]
[314930379,1708681847626,-160.0,0.000282,7]
[314930380,1708681847635,-160.0,0.000282,7]
[314930381,1708681847645,-160.0,0.000282,7]
[314930382,1708681847656,-151.0,0.000282,7]
[314930383,1708681847666,-204.395707,0.000282,7]
[314930384,1708681847675,-151.0,0.000282,7]
[314930385,1708681847685,-151.0,0.000282,7]
[314930386,1708681847695,-151.0,0.000282,7]
[314930387,1708681847704,-224.826635,0.000282,7]
[314930388,1708681847713,-151.0,0.000282,7]
[314930389,1708681847722,-151.0,0.000282,7]
[314930390,1708681847733,-151.0,0.000282,7]
[314930391,1708681847743,-151.0,0.000282,7]
[314930392,1708681847752,-151.0,0.000282,7]
[314930393,1708681847762,-151.0,0.000282,2]
[314930394,1708681847773,-151.0,0.000282,2]
[314930395,1708681847782,-151.402169,0.000282,7]
[314930396,1708681847791,-151.0,0.000282,2]
[314930397,1708681847801,-211.484297,0.000282,2]
[314930398,1708681847810,-151.0,0.000282,7]
[314930399,1708681847819,-152.306449,0.000282,7]
[314930400,1708681847829,-636.796986,0.000282,7]
[314930401,1708681847838,-636.796986,0.000282,7]
[314930402,1708681847848,-636.796986,0.000282,7]
[314930403,1708681847859,-636.796986,0.000282,7]
[314930404,1708681847868,-190.441522,0.000282,7]
[314930405,1708681847877,-151.0,0.000282,7]
[314930406,1708681847886,-266.537665,0.000282,7]
[314930407,1708681847895,-151.0,0.000282,7]
[314930408,1708681847904,-151.0,0.000282,7]
[314930409,1708681847915,-151.0,0.000282,7]
[314930410,1708681847925,-155.913238,0.000282,7]
[314930411,1708681847935,-151.0,0.000282,7]
[314930412,1708681847946,-151.0,0.000282,7]
[314930413,1708681847955,-151.0,0.000282,7]
[314930414,1708681847964,-151.0,0.000282,7]
[314930415,1708681847974,-151.0,0.000282,7]
[314930416,1708681847982,-154.247389,0.000282,7]
[314930417,1708681847991,-151.0,0.000282,7]
[314930418,1708681848000,-213.654606,0.000282,7]
[314930419,1708681848012,-213.654606,0.000282,7]
[314930420,1708681848022,-213.654606,0.000282,7]
[314930421,1708681848031,-213.654606,0.000282,7]
[314930422,1708681848040,-151.0,0.000282,7]
[314930423,1708681848049,-151.0,0.000282,7]
[314930424,1708681848058,-151.0,0.000282,7]
[314930425,1708681848067,-151.0,0.000282,7]
[314930426,1708681848076,-151.0,0.000282,7]
[314930427,1708681848086,-151.0,0.000282,7]
[314930428,1708681848095,-151.0,0.000282,7]
[314930429,1708681848104,-151.0,0.000282,7]
[314930430,1708681848113,-227.867719,0.000282,7]
[314930431,1708681848123,-151.0,0.000282,7]
[314930432,1708681848134,-151.0,0.000282,7]
[314930433,1708681848143,-181.739278,0.000282,7]
[314930434,1708681848155,-151.0,0.000282,7]
[314930435,1708681848164,-151.0,0.000282,7]
[314930436,1708681848174,-151.0,0.000282,7]
[314930437,1708681848185,-151.0,0.000282,7]
[314930438,1708681848195,-151.0,0.000282,7]
[314930439,1708681848206,-151.0,0.000282,7]
[314930440,1708681848216,-151.0,0.000282,7]
[314930441,1708681848226,-151.0,0.000282,7]
[314930442,1708681848235,-151.0,0.000282,7]
[314930443,1708681848244,-263.420551,0.000282,7]
[314930444,1708681848253,-151.0,0.000282,7]
[314930445,1708681848264,-151.0,0.000282,7]
[314930446,1708681848276,-151.0,0.000282,7]
[314930447,1708681848285,-151.0,0.000282,7]
[314930448,1708681848294,-278.392754,0.000282,7]
[314930449,1708681848303,-278.392754,0.000282,7]
[314930450,1708681848312,-151.0,0.000282,7]
[314930451,1708681848322,-151.0,0.000282,7]
[314930452,1708681848331,-278.392754,0.000282,7]
[314930453,1708681848339,-278.392754,0.000282,7]
[314930454,1708681848350,-1390.91103301,0.00028266,2]
[314930455,1708681848360,-2561.02726054,0.00028285,2]
[314930456,1708681848381,-500.0,0.00028293,2]
[314930457,1708681848390,-210.697901,0.00028294,7]
[314930458,1708681848400,-210.697901,0.00028294,7]
[314930459,1708681848409,-151.0,0.00028294,7]
[314930460,1708681848419,-151.0,0.00028294,7]
[314930461,1708681848429,-151.0,0.00028294,7]
[314930462,1708681848438,-160.0,0.00028294,7]
[314930463,1708681848447,-160.0,0.00028294,7]
[314930464,1708681848457,-151.0,0.00028294,7]
[314930465,1708681848466,-151.0,0.00028294,7]
[314930466,1708681848476,-151.0,0.00028294,7]
[314930467,1708681848485,-151.0,0.00028294,2]
[314930468,1708681848495,-636.796986,0.00028294,7]
[314930469,1708681848504,-636.796986,0.00028294,7]
[314930470,1708681848514,-151.0,0.00028294,7]
[314930471,1708681848525,-151.0,0.00028294,7]
[314930472,1708681848534,-151.0,0.00028294,7]
[314930473,1708681848546,-213.654606,0.00028294,7]
[314930474,1708681848555,-213.654606,0.00028294,7]
[314930475,1708681848569,-151.0,0.00028294,7]
[314930476,1708681848579,-170.674386,0.00028294,7]
[314930477,1708681848588,-151.0,0.00028294,7]
[314930478,1708681848599,-186.209335,0.00028294,7]
[314930479,1708681848608,-151.940319,0.00028294,7]
[314930480,1708681848617,-151.0,0.00028294,7]
[314930481,1708681848628,-171.506299,0.00028294,7]
[314930482,1708681848637,-151.0,0.00028294,7]
[314930483,1708681848648,-151.0,0.00028294,7]
[314930484,1708681848658,-151.0,0.00028294,7]
[314930485,1708681848668,-151.0,0.00028294,7]
[314930486,1708681848677,-151.0,0.00028294,7]
[314930487,1708681848686,-151.0,0.00028294,7]
[314930488,1708681848695,-278.392754,0.00028294,7]
[314930489,1708681848705,-151.0,0.00028294,7]
[314930490,1708681848714,-278.392754,0.00028294,7]
[314930491,1708681848725,-155.0,0.00028294,2]
[314930492,1708681848736,-324504.95639717,0.00028294,2]
[314930493,1708681848746,-1817.31,0.00028296,2]
[314930494,1708681848757,-770.12,0.00028347,2]
[314930495,1708681848768,-224.01,0.00028361,2]
[314930496,1708681848778,-352.0,0.000284,2]
[314930497,1708681848791,-160.55,0.0002845,2]
[314930498,1708681848807,-1269.1769921,0.00028457,2]
[314930499,1708681848817,-2561.02726054,0.00028469,2]
[314930500,1708681848828,-152.14,0.00028488,2]
[314930501,1708681848839,-16512.0,0.000285,2]
[314930502,1708681848849,-224.01,0.00028504,2]
[314930503,1708681848859,-770.12,0.00028505,2]
[314930504,1708681848869,-163.0,0.00028515,2]
[314930505,1708681848880,-202.4393114,0.00028519,2]
[314930506,1708681848889,-11613.31916683,0.00028519,2]
[314930507,1708681848898,-280.0,0.00028525,5]
[314930508,1708681848908,-500.0,0.00028567,2]
[314930509,1708681848917,-151.0,0.00028595,7]
[314930510,1708681848927,-151.0,0.00028595,7]
[314930511,1708681848936,-179.650463,0.00028595,7]
[314930512,1708681848946,-151.0,0.00028595,7]
[314930513,1708681848956,-151.0,0.00028595,7]
[314930514,1708681848966,-186.19648,0.00028595,7]
[314930515,1708681848975,-151.0,0.00028595,7]
[314930516,1708681848984,-278.392754,0.00028595,7]
[314930517,1708681848993,-257.243312,0.00028595,7]
[314930518,1708681849003,-278.392754,0.00028595,7]
[314930519,1708681849012,-71135.46618183,0.00028595,2]
[314930520,1708681849022,-15681.55909424,0.00028595,2]
[314930521,1708681849031,-345.88326893,0.00028601,15]
[314930522,1708681849040,-224.01,0.00028646,2]
[314930523,1708681849050,-2561.02726054,0.00028654,2]
[314930524,1708681849059,-151.0,0.00028656,7]
[314930525,1708681849068,-151.0,0.00028656,7]
[314930526,1708681849077,-160.0,0.00028656,7]
[314930527,1708681849087,-160.0,0.00028656,7]
[314930528,1708681849096,-151.0,0.00028656,7]
[314930529,1708681849105,-151.0,0.00028656,7]
[314930530,1708681849114,-151.0,0.00028656,7]
[314930531,1708681849124,-770.12,0.00028664,2]
[314930532,1708681849134,-200.0,0.0002867,2]
[314930533,1708681849143,-210.697901,0.00028684,7]
[314930534,1708681849153,-210.697901,0.00028684,7]
[314930535,1708681849162,-414.88225591,0.00028721,15]
[314930536,1708681849172,-160.55,0.0002874,2]
[314930537,1708681849182,-1000.0,0.00028764,7]
[314930538,1708681849191,-1000.0,0.00028764,7]
[314930539,1708681849201,-1000.0,0.00028764,7]
[314930540,1708681849211,-578.24867319,0.00028764,7]
[314930541,1708681849220,-1000.0,0.00028764,7]
[314930542,1708681849229,-238.34694799,0.00028764,7]
[314930543,1708681849243,-235.84713083,0.00028764,7]
[314930544,1708681849255,-173.75434469,0.00028764,7]
[314930545,1708681849264,-354.91442122,0.00028764,7]
[314930546,1708681849276,-188.86676558,0.00028764,7]
[314930547,1708681849285,-316.11350436,0.00028764,7]
[314930548,1708681849297,-354.05769493,0.00028764,7]
[314930549,1708681849308,-165.57028526,0.00028764,7]
[314930550,1708681849318,-271.33303792,0.00028764,7]
[314930551,1708681849329,-224.01,0.00028789,2]
[314930552,1708681849339,-200.0,0.000288,2]
[314930553,1708681849349,-2822.0,0.000288,2]
[314930554,1708681849360,-770.12,0.00028822,2]
[314930555,1708681849372,-800.0,0.0002883,2]
[314930556,1708681849382,-2561.02726054,0.00028839,2]
[314930557,1708681849392,-500.0,0.00028841,2]
[314930558,1708681849403,-224.01,0.00028931,2]
[314930559,1708681849415,-200.0,0.0002897,2]
[314930560,1708681849425,-800.0,0.0002897,2]
[314930561,1708681849435,-200.0,0.0002897,2]
[314930562,1708681849445,-500.0,0.0002897,2]
[314930563,1708681849454,-172.82525282,0.00029,2]
[314930564,1708681849466,-2207.86265684,0.00029,5]
[314930565,1708681849477,-2561.02726054,0.00029023,2]
[314930566,1708681849486,-224.01,0.00029074,2]
[314930567,1708681849495,-151.0,0.00029079,2]
[314930568,1708681849505,-636.796986,0.00029079,7]
[314930569,1708681849515,-636.796986,0.00029079,7]
[314930570,1708681849525,-151.0,0.00029079,7]
[314930571,1708681849534,-151.0,0.00029079,7]
[314930572,1708681849543,-151.0,0.00029079,7]
[314930573,1708681849552,-213.654606,0.00029079,7]
[314930574,1708681849564,-213.654606,0.00029079,7]
[314930575,1708681849573,-158.16,0.00029079,2]
[314930576,1708681849582,-458.0,0.00029091,2]
[314930577,1708681849591,-955.0,0.00029091,2]
[314930578,1708681849601,-521.148,0.00029091,2]
[314930579,1708681849611,-853.619,0.00029091,2]
[314930580,1708681849620,-150.0,0.00029091,2]
[314930581,1708681849629,-800.0,0.00029109,2]
[314930582,1708681849640,-500.0,0.00029115,2]
[314930583,1708681849650,-477.05917284,0.00029117,2]
[314930584,1708681849659,-2383.31263705,0.00029117,2]
[314930585,1708681849668,-163.62,0.00029133,2]
[314930586,1708681849679,-156.0,0.00029137,2]
[314930587,1708681849693,-404.83,0.00029171,2]
[314930588,1708681849702,-4500.00000036,0.000292,2]
[314930589,1708681849713,-235.26855942,0.000292,16]
[314930590,1708681849724,-2561.02726054,0.00029208,2]
[314930591,1708681849735,-224.01,0.00029216,2]
[314930592,1708681849746,-168.05,0.00029227,2]
[314930593,1708681849758,-800.0,0.00029248,2]
[314930594,1708681849769,-151.0,0.00029258,7]
[314930595,1708681849778,-151.0,0.00029258,7]
[314930596,1708681849788,-243.608083,0.00029258,7]
[314930597,1708681849797,-166.546488,0.00029258,7]
[314930598,1708681849807,-151.0,0.00029258,7]
[314930599,1708681849816,-278.392754,0.00029258,7]
[314930600,1708681849826,-278.392754,0.00029258,7]
[314930601,1708681849835,-71135.46618183,0.00029258,2]
[314930602,1708681849844,-15681.55909424,0.00029258,2]
[314930603,1708681849853,-237.78098534,0.00029268,2]
[314930604,1708681849862,-2603.73887907,0.00029287,2]
[314930605,1708681849872,-24115.65878357,0.00029292,2]
[314930606,1708681849882,-1631.94621084,0.00029292,2]
[314930607,1708681849893,-173.17724569,0.00029292,2]
[314930608,1708681849904,-10705.826182,0.000293,2]
[314930609,1708681849914,-151.0,0.000293,7]
[314930610,1708681849924,-151.0,0.000293,7]
[314930611,1708681849935,-152.234106,0.000293,7]
[314930612,1708681849944,-463.96,0.000293,2]
[314930613,1708681849953,-2603.73887907,0.00029311,2]
[314930614,1708681849963,-151.0,0.00029311,7]
[314930615,1708681849973,-151.0,0.00029311,7]
[314930616,1708681849983,-160.0,0.00029311,7]
[314930617,1708681849994,-160.0,0.00029311,7]
[314930618,1708681850004,-151.0,0.00029311,7]
[314930619,1708681850014,-155.12451,0.00029311,7]
[314930620,1708681850025,-151.0,0.00029311,7]
[314930621,1708681850034,-210.697901,0.00029336,7]
[314930622,1708681850044,-210.697901,0.00029336,7]
[314930623,1708681850053,-163.0,0.00029337,2]
[314930624,1708681850063,-237.78098534,0.00029347,2]
[314930625,1708681850072,-224.01,0.00029359,2]
[314930626,1708681850082,-152.14,0.00029378,2]
[314930627,1708681850092,-301.19103781,0.0002938,2]
[314930628,1708681850101,-500.0,0.00029389,2]
[314930629,1708681850111,-2561.02726054,0.00029392,2]
[314930630,1708681850120,-1315.6412712,0.000294,2]
[314930631,1708681850130,-235.26855939,0.00029433,16]
[314930632,1708681850139,-26346.0,0.00029465,5]
[314930633,1708681850149,-150.01,0.00029484,2]
[314930634,1708681850158,-4983.01824528,0.00029484,2]
[314930635,1708681850169,-12016.12456343,0.00029485,2]
[314930636,1708681850178,-1004.29928186,0.00029485,2]
[314930637,1708681850188,-733.57786006,0.00029487,2]
[314930638,1708681850198,-246.01569352,0.0002949,2]
[314930639,1708681850207,-13102.84280093,0.0002949,2]
[314930640,1708681850216,-151.0,0.0002949,2]
[314930641,1708681850226,-636.796986,0.0002949,7]
[314930642,1708681850236,-636.796986,0.0002949,7]
[314930643,1708681850245,-155.524215,0.0002949,7]
[314930644,1708681850255,-267.422106,0.0002949,7]
[314930645,1708681850264,-157.458926,0.0002949,7]
[314930646,1708681850275,-213.654606,0.0002949,7]
[314930647,1708681850285,-213.654606,0.0002949,7]
[314930648,1708681850294,-955.10198081,0.00029492,2]
[314930649,1708681850304,-733.57786006,0.00029493,2]
[314930650,1708681850313,-955.10198081,0.00029497,2]
[314930651,1708681850323,-733.57786006,0.00029498,2]
[314930652,1708681850332,-2739.12710764,0.000295,2]
[314930653,1708681850342,-230.81635831,0.000295,3]
[314930654,1708681850351,-1727.001711,0.000295,2]
[314930655,1708681850361,-224.01,0.00029501,2]
[314930656,1708681850370,-733.57786006,0.00029506,2]
[314930657,1708681850380,-1004.29928186,0.00029507,2]
[314930658,1708681850389,-157.15432337,0.00029509,2]
[314930659,1708681850399,-246.01569352,0.00029523,2]
[314930660,1708681850408,-157.15432337,0.00029526,2]
[314930661,1708681850418,-5563.27305624,0.00029529,2]
[314930662,1708681850428,-955.10198081,0.00029539,2]
[314930663,1708681850438,-157.15432337,0.0002954,2]
[314930664,1708681850447,-5563.27305624,0.00029545,2]
[314930665,1708681850457,-955.10198081,0.00029547,2]
[314930666,1708681850466,-1004.29928186,0.0002955,2]
[314930667,1708681850476,-157.15432337,0.00029553,2]
[314930668,1708681850485,-1004.29928186,0.00029555,2]
[314930669,1708681850495,-246.01569352,0.00029555,2]
[314930670,1708681850505,-157.15432337,0.00029565,2]
[314930671,1708681850515,-5563.27305624,0.00029568,2]
[314930672,1708681850525,-1004.29928186,0.00029574,2]
[314930673,1708681850535,-2561.02726054,0.00029577,2]
[314930674,1708681850545,-246.01569352,0.00029578,2]
[314930675,1708681850555,-34208.22129966,0.00029581,2]
[314930676,1708681851215,-1957.57536348,0.00029581,2]
[314930677,1708681851228,-3132.12463652,0.00029581,2]
[314930678,1708681851260,-9.74603402,0.00029581,2]
[314930679,1708681851285,-12263.12457723,0.00029581,2]
[314930680,1708681851299,-955.10198081,0.00029581,2]
[314930681,1708681851309,-5563.27305624,0.00029581,2]
[314930682,1708681851320,-3029.27753132,0.00029582,2]
[314930683,1708681851332,-287.57716854,0.00029582,2]
[314930684,1708681870031,131264.75357784,0.00023,2]
[314930685,1708681870069,561.0,0.00023,2]
[314930686,1708681870115,200000.0,0.00023,2]
[314930687,1708681870147,61367.23242216,0.00023,2]
[314930689,1708682032068,28252.0,0.00023,2]
[314930690,1708682032089,1171086.54213477,0.00023,2]
[314930692,1708682145161,2297.76,0.00029,120]
[314930693,1708682145187,179864.20774993,0.00029,120]
[314930694,1708682238692,71616.0854566,0.00029,120]
[314930705,1708683031635,-389.53,0.00024769,2]
[314930706,1708683031645,-615.56277098,0.00024898,2]
[314930707,1708683031654,-174.43116045,0.00024899,2]
[314930708,1708683031664,-750.0,0.00025,3]
[314930709,1708683031673,-210.0,0.00025744,2]
[314930710,1708683031683,-393.33,0.00026781,2]
[314930711,1708683031694,-176.39,0.00026804,2]
[314930712,1708683031703,-11190.11332008,0.00026897,2]
[314930713,1708683031775,-2283.4698,0.00026897,2]
[314930714,1708683031786,-462.40877132,0.00026897,2]
[314930715,1708683031798,-2187.62935305,0.00026897,2]
[314930717,1708683032396,-845.66579652,0.00026897,2]
[314930718,1708683032408,-672.00447202,0.00026897,2]
[314930719,1708683032419,-795.70998184,0.00026897,2]
[314930720,1708683032431,-5626.140256,0.00026897,2]
[314930721,1708683032451,-1012.23348766,0.00026897,2]
[314930722,1708683037537,-643.87703689,0.00026897,2]
[314930723,1708683037549,-2145.76887824,0.00026897,2]
[314930724,1708683037560,-5130.0,0.00026897,2]
[314930725,1708683037761,-4734.61644403,0.00026897,2]
[314930726,1708683037829,-17931.74061971,0.00026897,2]
[314930727,1708683037844,-29010.0,0.00026897,2]
[314930776,1708683040066,-955.86999579,0.00026897,2]
[314930777,1708683040151,-2675.62045492,0.00026897,2]
[314930778,1708683040162,-765.1619,0.00026897,2]
[314930779,1708683040173,-306.5613438,0.00026897,2]
[314930780,1708683040185,-544.13000421,0.00026897,2]
[314930781,1708683040210,-23457.27808392,0.00026897,2]
[314930782,1708683040219,-651.63,0.00026901,2]
[314930783,1708683040228,-462.42,0.00026976,2]
[314930784,1708683040237,-389.53,0.00027033,2]
[314930785,1708683040246,-160.26653935,0.00027218,2]
[314930786,1708683040255,-236.11,0.00027317,2]
[314930787,1708683040264,-355.01,0.00027361,2]
[314930788,1708683040274,-170.41,0.00027383,2]